Workbook

Sheet بيانات أساسية
D2: ادخل البيانات أولا
A4: المحافظة
A5: الإدارة | D5: إدارة قويسنا التعليمية
A6: المدرسة | D6: مدرسة عرب الرمل الإبتدائية سكة حديد
A7: القسم
A8: رئيس الكنترول | D8: أ/ محـــمد سعيـــد
A9: رئيس اللجــنة | D9: أ/عزه البدرى
A10: رئيس لجنة سير الامتحان | D10: 333333
A11: وكيل شئون الطلبة | D11: 44444444
A12: مسئول الحاسب | D12: 555555
A13: امتحان | D13: امتحان الفصل الدراسى الأول
A14: الصف | D14: الصف الرابع
A15: السنة الدراسية | D15: الفصل الدراسى الأول 2025/2024
A17: تاريخ امتحان الدور الثانى

Sheet اللجان
I1: اكتب فى الخلايا ذات اللون الابيض فقط
D2: ='بيانات أساسية'!$D$14 -> الصف الرابع
B3: م | C3: اكتب أول رقم جلوس هنا | E3: =SUM(E5:E44) -> 119 | F3: =COUNT(F5:F44) -> 6 | J3: مقيد | K3: موزع | L3: متبقى
D4: إلى | E4: عدد الطلبه فى اللجنه | F4: رقم اللجنة | G4: الصف | H4: الدمج | J4: =COUNTA(الطلبة!C5:C487) -> 119 | K4: =SUM(E5:E44) -> 119 | L4: =J4-K4 -> 0
B5: =IF(C5="","",COUNT($C$5:C5)) -> 1 | C5: 301 | D5: =IF(E5="","",C5+E5-1) -> 320 | E5: 20 | F5: =IF(C5="","",COUNT($C$5:C5)) -> 1 | G5: الرابع
B6: =IF(C6="","",COUNT($C$5:C6)) -> 2 | C6: =IF(E6="","",D5+1) -> 321 | D6: 340 | E6: 20 | F6: =IF(C6="","",COUNT($C$5:C6)) -> 2 | G6: =G5 -> الرابع | H6: 1ب
B7: =IF(C7="","",COUNT($C$5:C7)) -> 3 | C7: =IF(E7="","",D6+1) -> 341 | D7: 360 | E7: 20 | F7: =IF(C7="","",COUNT($C$5:C7)) -> 3 | G7: =G6 -> الرابع
B8: =IF(C8="","",COUNT($C$5:C8)) -> 4 | C8: =IF(E8="","",D7+1) -> 361 | D8: 380 | E8: 20 | F8: =IF(C8="","",COUNT($C$5:C8)) -> 4 | G8: =G7 -> الرابع
B9: =IF(C9="","",COUNT($C$5:C9)) -> 5 | C9: =IF(E9="","",D8+1) -> 381 | D9: 400 | E9: 20 | F9: =IF(C9="","",COUNT($C$5:C9)) -> 5 | G9: =G8 -> الرابع | H9: 1ب
B10: =IF(C10="","",COUNT($C$5:C10)) -> 6 | C10: =IF(E10="","",D9+1) -> 401 | D10: 419 | E10: 19 | F10: =IF(C10="","",COUNT($C$5:C10)) -> 6 | G10: =G9 -> الرابع
B11: =IF(C11="","",COUNT($C$5:C11)) ->  | C11: =IF(E11="","",D10+1) ->  | D11: =IF(E11="","",C11+E11-1) ->  | F11: =IF(C11="","",COUNT($C$5:C11)) -> 
B12: =IF(C12="","",COUNT($C$5:C12)) ->  | F12: =IF(C12="","",COUNT($C$5:C12)) -> 
B13: =IF(C13="","",COUNT($C$5:C13)) ->  | F13: =IF(C13="","",COUNT($C$5:C13)) -> 
B14: =IF(C14="","",COUNT($C$5:C14)) ->  | F14: =IF(C14="","",COUNT($C$5:C14)) -> 
B15: =IF(C15="","",COUNT($C$5:C15)) ->  | F15: =IF(C15="","",COUNT($C$5:C15)) -> 
B16: =IF(C16="","",COUNT($C$5:C16)) ->  | F16: =IF(C16="","",COUNT($C$5:C16)) -> 
B17: =IF(C17="","",COUNT($C$5:C17)) ->  | F17: =IF(C17="","",COUNT($C$5:C17)) -> 
B18: =IF(C18="","",COUNT($C$5:C18)) ->  | F18: =IF(C18="","",COUNT($C$5:C18)) -> 
B19: =IF(C19="","",COUNT($C$5:C19)) ->  | F19: =IF(C19="","",COUNT($C$5:C19)) -> 
B20: =IF(C20="","",COUNT($C$5:C20)) ->  | F20: =IF(C20="","",COUNT($C$5:C20)) -> 
B21: =IF(C21="","",COUNT($C$5:C21)) ->  | F21: =IF(C21="","",COUNT($C$5:C21)) -> 
B22: =IF(C22="","",COUNT($C$5:C22)) ->  | F22: =IF(C22="","",COUNT($C$5:C22)) -> 
B23: =IF(C23="","",COUNT($C$5:C23)) ->  | F23: =IF(C23="","",COUNT($C$5:C23)) -> 
B24: =IF(C24="","",COUNT($C$5:C24)) ->  | F24: =IF(C24="","",COUNT($C$5:C24)) -> 
B25: =IF(C25="","",COUNT($C$5:C25)) ->  | F25: =IF(C25="","",COUNT($C$5:C25)) -> 
B26: =IF(C26="","",COUNT($C$5:C26)) ->  | F26: =IF(C26="","",COUNT($C$5:C26)) -> 
B27: =IF(C27="","",COUNT($C$5:C27)) ->  | F27: =IF(C27="","",COUNT($C$5:C27)) -> 
B28: =IF(C28="","",COUNT($C$5:C28)) ->  | F28: =IF(C28="","",COUNT($C$5:C28)) -> 
B29: =IF(C29="","",COUNT($C$5:C29)) ->  | F29: =IF(C29="","",COUNT($C$5:C29)) -> 
B30: =IF(C30="","",COUNT($C$5:C30)) ->  | F30: =IF(C30="","",COUNT($C$5:C30)) -> 
B31: =IF(C31="","",COUNT($C$5:C31)) ->  | F31: =IF(C31="","",COUNT($C$5:C31)) -> 
B32: =IF(C32="","",COUNT($C$5:C32)) ->  | F32: =IF(C32="","",COUNT($C$5:C32)) -> 
B33: =IF(C33="","",COUNT($C$5:C33)) ->  | F33: =IF(C33="","",COUNT($C$5:C33)) -> 
B34: =IF(C34="","",COUNT($C$5:C34)) ->  | F34: =IF(C34="","",COUNT($C$5:C34)) -> 
B35: =IF(C35="","",COUNT($C$5:C35)) ->  | F35: =IF(C35="","",COUNT($C$5:C35)) -> 
B36: =IF(C36="","",COUNT($C$5:C36)) ->  | F36: =IF(C36="","",COUNT($C$5:C36)) -> 
B37: =IF(C37="","",COUNT($C$5:C37)) ->  | F37: =IF(C37="","",COUNT($C$5:C37)) -> 
B38: =IF(C38="","",COUNT($C$5:C38)) ->  | F38: =IF(C38="","",COUNT($C$5:C38)) -> 
B39: =IF(C39="","",COUNT($C$5:C39)) ->  | F39: =IF(C39="","",COUNT($C$5:C39)) -> 
B40: =IF(C40="","",COUNT($C$5:C40)) ->  | F40: =IF(C40="","",COUNT($C$5:C40)) -> 
B41: =IF(C41="","",COUNT($C$5:C41)) ->  | F41: =IF(C41="","",COUNT($C$5:C41)) -> 
B42: =IF(C42="","",COUNT($C$5:C42)) ->  | F42: =IF(C42="","",COUNT($C$5:C42)) -> 
B43: =IF(C43="","",COUNT($C$5:C43)) ->  | F43: =IF(C43="","",COUNT($C$5:C43)) -> 
B44: =IF(C44="","",COUNT($C$5:C44)) ->  | F44: =IF(C44="","",COUNT($C$5:C44)) -> 

Sheet الطلبة
A2: العدد | B2: =COUNT(I6A5:A604) -> 0 | C2: ='بيانات أساسية'!D14 -> الصف الرابع | G2: ادخل البيانات فى الأعمدة B C D فقط أولا
A3: أرقام الجلوس | B3: =MAX(اللجان!C5:D44) -> 419 | O3: معادلة اكسل في العمود E7:E بشرط الاسم قي B7:Bلاستدعاء بيانات من شيت الطلبة من النطاق H5:H علما بان الأسماء في شين الطلبة في العمود C
A4: م | B4: رقم الجلوس | C4: الاسم | E4: اللجنة | F4: نهاية اللجنة | G4: نهاية الفصل | H4: المجموعة | I4: رقم اللجنه | J4: أ | K4: ب | L4: ج
A5: =IF(C5="","",COUNTA($C$5:C5)) -> 1 | B5: =اللجان!C5 -> 301 | C5: السيد ماهر السيد حسين غلوش | E5: =IF(B5="","",VLOOKUP(B5,أول_ز,4)) -> 1 | F5: =IF(E5=E6,"","نهاية اللجنة") ->  | G5: =IF(D5=D6,"","نهاية الفصل") ->  | H5: ب | I5: 1 | J5: =COUNTIF($H$5:$H$24,"أ") -> 6 | K5: =COUNTIF($H$5:$H$24,"ب") -> 8 | L5: =COUNTIF($H$5:$H$24,"ج") -> 6
A6: =IF(C6="","",COUNTA($C$5:C6)) -> 2 | B6: =IF(B5="","",IF(B5+1>$B$3,"",B5+1)) -> 302 | C6: إبراهيم حسن حسينى عبد الهادى | E6: 1 | F6: =IF(E6=E7,"","نهاية اللجنة") ->  | G6: =IF(D6=D7,"","نهاية الفصل") ->  | H6: ب | I6: 2 | J6: =COUNTIF($H$25:$H$44,"أ") -> 7 | K6: =COUNTIF($H$25:$H$44,"ب") -> 6 | L6: =COUNTIF($H$25:$H$44,"ج") -> 6
A7: =IF(C7="","",COUNTA($C$5:C7)) -> 3 | B7: =IF(B6="","",IF(B6+1>$B$3,"",B6+1)) -> 303 | C7: إياد عبد المحسن رمضان إمام نصر | E7: 1 | H7: ج | I7: 3 | J7: =COUNTIF($H$45:$H$64,"أ") -> 7 | K7: =COUNTIF($H$45:$H$64,"ب") -> 7 | L7: =COUNTIF($H$45:$H$64,"ج") -> 6
A8: =IF(C8="","",COUNTA($C$5:C8)) -> 4 | B8: =IF(B7="","",IF(B7+1>$B$3,"",B7+1)) -> 304 | C8: إياد عمرو محمد عبد الفتاح حماد | E8: 1 | H8: أ | I8: 4 | J8: =COUNTIF($H$85:$H$104,"أ") -> 7 | K8: =COUNTIF($H$65:$H$84,"ب") -> 7 | L8: =COUNTIF($H$65:$H$84,"ج") -> 6
A9: =IF(C9="","",COUNTA($C$5:C9)) -> 5 | B9: 305 | C9: إياد محمد زايد عبدالرازق | E9: 1 | H9: ب | I9: 5 | J9: =COUNTIF($H$85:$H$104,"أ") -> 7 | K9: =COUNTIF($H$85:$H$104,"ب") -> 6 | L9: =COUNTIF($H$85:$H$104,"ج") -> 6
A10: =IF(C10="","",COUNTA($C$5:C10)) -> 6 | B10: 306 | C10: إياد محمد فتحى عبدالستار | E10: 1 | H10: ج | I10: 6 | J10: =COUNTIF($H$105:$H$123,"أ") -> 7 | K10: =COUNTIF($H$105:$H$123,"ب") -> 6 | L10: =COUNTIF($H$105:$H$123,"ج") -> 6
A11: =IF(C11="","",COUNTA($C$5:C11)) -> 7 | B11: 307 | C11: أحمد السيد محمد السيد أبو الفتوح | E11: 1 | H11: أ
A12: =IF(C12="","",COUNTA($C$5:C12)) -> 8 | B12: 308 | C12: أحمد بلال عبدالسميع عبدالمنعم | E12: 1 | H12: ب
A13: =IF(C13="","",COUNTA($C$5:C13)) -> 9 | B13: 309 | C13: أحمد حسام عطيه المغازى أبو زيد | E13: 1 | H13: ج
A14: =IF(C14="","",COUNTA($C$5:C14)) -> 10 | B14: 310 | C14: أحمد رامى محمود محمد | E14: 1 | H14: أ
A15: =IF(C15="","",COUNTA($C$5:C15)) -> 11 | B15: 311 | C15: أحمد رضا محمد على جلاله | E15: 1 | H15: ب
A16: =IF(C16="","",COUNTA($C$5:C16)) -> 12 | B16: 312 | C16: أحمد عبدالحميد أحمد الحنفي | E16: 1 | H16: ج
A17: =IF(C17="","",COUNTA($C$5:C17)) -> 13 | B17: 313 | C17: أحمد متولى احمد متولى | E17: 1 | H17: أ
A18: =IF(C18="","",COUNTA($C$5:C18)) -> 14 | B18: 314 | C18: أحمد محمد عبدالعزيز محمد عبدالغنى | E18: 1 | H18: ب
A19: =IF(C19="","",COUNTA($C$5:C19)) -> 15 | B19: 315 | C19: أحمد هانى صلاح الدين غنيم | E19: 1 | H19: ج
A20: =IF(C20="","",COUNTA($C$5:C20)) -> 16 | B20: 316 | C20: أنس مصطفى عبد ربه عبد اللطيف | E20: 1 | H20: أ
A21: =IF(C21="","",COUNTA($C$5:C21)) -> 17 | B21: 317 | C21: آدم عصام الحفنى عبدالمعطي | E21: 1 | H21: ب
A22: =IF(C22="","",COUNTA($C$5:C22)) -> 18 | B22: 318 | C22: آدم عمرو الصادق المرادى | E22: 1 | H22: ج
A23: =IF(C23="","",COUNTA($C$5:C23)) -> 19 | B23: 319 | C23: آدم محمد السيد عبدالمنعم العليمي | E23: 1 | H23: أ
A24: =IF(C24="","",COUNTA($C$5:C24)) -> 20 | B24: 320 | C24: حسام محمد حسام الدين محمود | E24: 1 | F24: نهاية اللجنة | H24: ب
A25: =IF(C25="","",COUNTA($C$5:C25)) -> 21 | B25: 321 | C25: حمزة عبد الفتاح أحمد عبد الفتاح | E25: 2 | F25: =IF(E25=E26,"","نهاية اللجنة") ->  | H25: أ
A26: =IF(C26="","",COUNTA($C$5:C26)) -> 22 | B26: 322 | C26: خالد السعيد مسعد السعيد سيد أحمد | E26: 2 | H26: ب
A27: =IF(C27="","",COUNTA($C$5:C27)) -> 23 | B27: 323 | C27: رأفت ربيع رضوان محمد الهادى | E27: 2 | H27: ج
A28: =IF(C28="","",COUNTA($C$5:C28)) -> 24 | B28: 324 | C28: رحيم ربيع رضوان محمد الهادى | E28: 2 | H28: أ
A29: =IF(C29="","",COUNTA($C$5:C29)) -> 25 | B29: 325 | C29: زياد احمد عبدالتواب موسي | E29: 2 | H29: دمج ب
A30: =IF(C30="","",COUNTA($C$5:C30)) -> 26 | B30: 326 | C30: زياد أمير أحمد موسى منتصر | E30: 2 | H30: ج
A31: =IF(C31="","",COUNTA($C$5:C31)) -> 27 | B31: 327 | C31: سعد أحمد سعد توفيق | E31: 2 | H31: أ
A32: =IF(C32="","",COUNTA($C$5:C32)) -> 28 | B32: 328 | C32: صبحى محمد صبحى عبدالرازق | E32: 2 | H32: ب
A33: =IF(C33="","",COUNTA($C$5:C33)) -> 29 | B33: 329 | C33: صلاح محمود صلاح الدين غنيم | E33: 2 | H33: ج
A34: =IF(C34="","",COUNTA($C$5:C34)) -> 30 | B34: 330 | C34: عبد الحليم عمرو عبد الحليم السيد | E34: 2 | H34: أ
A35: =IF(C35="","",COUNTA($C$5:C35)) -> 31 | B35: 331 | C35: عبد الرحمن السيد عبد العزيز محمد | E35: 2 | H35: ب
A36: =IF(C36="","",COUNTA($C$5:C36)) -> 32 | B36: 332 | C36: عبد الرحمن عماد عاطف مكاوى | E36: 2 | H36: ج
A37: =IF(C37="","",COUNTA($C$5:C37)) -> 33 | B37: 333 | C37: عبد الرحمن محمد مسعد رمضان | E37: =IF(B37="","",VLOOKUP(B37,أول_ز,4)) -> 2 | H37: أ
A38: =IF(C38="","",COUNTA($C$5:C38)) -> 34 | B38: 334 | C38: عبد العزيز محمد عبد العزيز موسى | E38: 2 | H38: ب
A39: =IF(C39="","",COUNTA($C$5:C39)) -> 35 | B39: 335 | C39: على عادل على محمد | E39: 2 | H39: ج
A40: =IF(C40="","",COUNTA($C$5:C40)) -> 36 | B40: 336 | C40: عماد موسى إبراهيم موسى أحمد | E40: 2 | H40: أ
A41: =IF(C41="","",COUNTA($C$5:C41)) -> 37 | B41: 337 | C41: عمر احمد حامد زكى | E41: 2 | H41: ب
A42: =IF(C42="","",COUNTA($C$5:C42)) -> 38 | B42: 338 | C42: عمر أحمد محمد محمد على | E42: 2 | H42: ج
A43: =IF(C43="","",COUNTA($C$5:C43)) -> 39 | B43: 339 | C43: عمر علاء سلامة محمد الخضرى | E43: 2 | H43: أ
A44: =IF(C44="","",COUNTA($C$5:C44)) -> 40 | B44: 340 | C44: فتحى محمود فتحى عواد فرج | E44: 2 | F44: نهاية اللجنة | H44: ب
A45: =IF(C45="","",COUNTA($C$5:C45)) -> 41 | B45: 341 | C45: كامل محمد كامل الشريف | E45: 3 | H45: أ
A46: =IF(C46="","",COUNTA($C$5:C46)) -> 42 | B46: 342 | C46: مالك السيد عبد المجيد السيد بكر | E46: 3 | H46: ب
A47: =IF(C47="","",COUNTA($C$5:C47)) -> 43 | B47: 343 | C47: محمد احمد سمير احمد العليمي | E47: 3 | H47: ج
A48: =IF(C48="","",COUNTA($C$5:C48)) -> 44 | B48: 344 | C48: محمد أحمد عبدالمنعم زايد محمد | E48: 3 | H48: أ
A49: =IF(C49="","",COUNTA($C$5:C49)) -> 45 | B49: 345 | C49: محمد سمير عبدالحفيظ المهدى | E49: 3 | H49: ب
A50: =IF(C50="","",COUNTA($C$5:C50)) -> 46 | B50: 346 | C50: محمد عبد الغنى معتمد عبد الغنى | E50: 3 | H50: ج
A51: =IF(C51="","",COUNTA($C$5:C51)) -> 47 | B51: 347 | C51: محمد ماجد عبدالعزيز ابوالفتوح | E51: 3 | H51: أ
A52: =IF(C52="","",COUNTA($C$5:C52)) -> 48 | B52: 348 | C52: محمد محمود السيد محمود | E52: 3 | H52: ب
A53: =IF(C53="","",COUNTA($C$5:C53)) -> 49 | B53: 349 | C53: محمد محمود ذكي حماد | E53: 3 | H53: ج
A54: =IF(C54="","",COUNTA($C$5:C54)) -> 50 | B54: 350 | C54: محمد هانى البيومي السيد سيد احمد | E54: 3 | H54: أ
A55: =IF(C55="","",COUNTA($C$5:C55)) -> 51 | B55: 351 | C55: محمد هانى السيد محمد | E55: 3 | H55: ب
A56: =IF(C56="","",COUNTA($C$5:C56)) -> 52 | B56: 352 | C56: محمد هانى محمد العليمى | E56: 3 | H56: ج
A57: =IF(C57="","",COUNTA($C$5:C57)) -> 53 | B57: 353 | C57: محمد ياسر احمد موسى المرادى | E57: 3 | H57: أ
A58: =IF(C58="","",COUNTA($C$5:C58)) -> 54 | B58: 354 | C58: محمود احمد محمد العليمى | E58: 3 | H58: ب
A59: =IF(C59="","",COUNTA($C$5:C59)) -> 55 | B59: 355 | C59: محمود السيد ابراهيم مصيلحى | E59: 3 | H59: ج
A60: =IF(C60="","",COUNTA($C$5:C60)) -> 56 | B60: 356 | C60: محمود محمد عبدالحفيظ مهدى | E60: 3 | H60: أ
A61: =IF(C61="","",COUNTA($C$5:C61)) -> 57 | B61: 357 | C61: مهاب محمد فكرى سيد | E61: 3 | H61: ب
A62: =IF(C62="","",COUNTA($C$5:C62)) -> 58 | B62: 358 | C62: مهند السيد عبد الرحمن السيد | E62: 3 | H62: ج
A63: =IF(C63="","",COUNTA($C$5:C63)) -> 59 | B63: 359 | C63: يحيي اشرف احمد المكاوى | E63: 3 | H63: أ
A64: =IF(C64="","",COUNTA($C$5:C64)) -> 60 | B64: 360 | C64: يوسف عبدالرازق محمد الهادى | E64: 3 | F64: نهاية اللجنة | H64: ب
A65: =IF(C65="","",COUNTA($C$5:C65)) -> 61 | B65: 361 | C65: يوسف عبدالمنعم عادل عبد المنعم | E65: 4 | H65: أ
A66: =IF(C66="","",COUNTA($C$5:C66)) -> 62 | B66: 362 | C66: يوسف عبدالمنعم عبدالرازق عبدالمنعم | E66: 4 | H66: ب
A67: =IF(C67="","",COUNTA($C$5:C67)) -> 63 | B67: 363 | C67: إيمى احمد صلاح الدين حسن | E67: 4 | H67: ج
A68: =IF(C68="","",COUNTA($C$5:C68)) -> 64 | B68: 364 | C68: أسماء السيد فتحى السيد محمد السيد | E68: 4 | H68: أ
A69: =IF(C69="","",COUNTA($C$5:C69)) -> 65 | B69: 365 | C69: أسيل عبد الله السيد محمد | E69: =IF(B69="","",VLOOKUP(B69,أول_ز,4)) -> 4 | H69: ب
A70: =IF(C70="","",COUNTA($C$5:C70)) -> 66 | B70: 366 | C70: آية محمد ابراهيم محمد | E70: 4 | F70: =IF(E70=E71,"","نهاية اللجنة") ->  | G70: =IF(D70=D71,"","نهاية الفصل") ->  | H70: ج
A71: =IF(C71="","",COUNTA($C$5:C71)) -> 67 | B71: =IF(B70="","",IF(B70+1>$B$3,"",B70+1)) -> 367 | C71: بسنت طارق محمد السيد أبو الفتوح | E71: 4 | H71: أ
A72: =IF(C72="","",COUNTA($C$5:C72)) -> 68 | B72: 368 | C72: جنى عبد الله ابراهيم يوسف | E72: 4 | H72: ب
A73: =IF(C73="","",COUNTA($C$5:C73)) -> 69 | B73: 369 | C73: جنى محمد عبد الله عبد الخالق إبراهيم | E73: 4 | H73: ج
A74: =IF(C74="","",COUNTA($C$5:C74)) -> 70 | B74: 370 | C74: جنى مدحت محمود محمد عطية | E74: 4 | H74: أ
A75: =IF(C75="","",COUNTA($C$5:C75)) -> 71 | B75: 371 | C75: جودى امير صبحى عبد الوهاب عبد الله | E75: 4 | H75: ب
A76: =IF(C76="","",COUNTA($C$5:C76)) -> 72 | B76: 372 | C76: جودى أمير عبد الحفيظ الطنطاوى | E76: 4 | H76: ج
A77: =IF(C77="","",COUNTA($C$5:C77)) -> 73 | B77: 373 | C77: جودى محمد الشحات حامد | E77: 4 | H77: أ
A78: =IF(C78="","",COUNTA($C$5:C78)) -> 74 | B78: 374 | C78: حبيبة ابراهيم طلعت محمد | E78: 4 | H78: ب
A79: =IF(C79="","",COUNTA($C$5:C79)) -> 75 | B79: 375 | C79: حبيبة محمد سيدأحمد إبراهيم | E79: 4 | H79: ج
A80: =IF(C80="","",COUNTA($C$5:C80)) -> 76 | B80: 376 | C80: حنين احمد جمال عبدالمنعم | E80: 4 | H80: أ
A81: =IF(C81="","",COUNTA($C$5:C81)) -> 77 | B81: 377 | C81: حنين احمد عبدالغنى ابراهيم عبدالغنى | E81: 4 | H81: ب
A82: =IF(C82="","",COUNTA($C$5:C82)) -> 78 | B82: 378 | C82: حنين بشير طه محمود عيد | E82: 4 | H82: ج
A83: =IF(C83="","",COUNTA($C$5:C83)) -> 79 | B83: 379 | C83: حور رامى محمود عبد المنعم | E83: 4 | H83: أ
A84: =IF(C84="","",COUNTA($C$5:C84)) -> 80 | B84: 380 | C84: رحمه احمد محمد ابراهيم | E84: 4 | F84: نهاية اللجنة | H84: ب
A85: =IF(C85="","",COUNTA($C$5:C85)) -> 81 | B85: 381 | C85: رحمه إبراهيم على رضوان الشحرى | E85: 5 | H85: أ
A86: =IF(C86="","",COUNTA($C$5:C86)) -> 82 | B86: 382 | C86: رغد محمد سيد أحمد سعيد سيد أحمد | E86: 5 | H86: ب
A87: =IF(C87="","",COUNTA($C$5:C87)) -> 83 | B87: 383 | C87: رقية الحسين فاروق محمد إبراهيم | E87: 5 | H87: ج
A88: =IF(C88="","",COUNTA($C$5:C88)) -> 84 | B88: 384 | C88: رنا حاتم مصطفى أبوالفتوح | E88: 5 | H88: أ
A89: =IF(C89="","",COUNTA($C$5:C89)) -> 85 | B89: 385 | C89: رودينا احمد صبرى ابوالعلا الجزار | E89: =IF(B89="","",VLOOKUP(B89,أول_ز,4)) -> 5 | H89: ب
A90: =IF(C90="","",COUNTA($C$5:C90)) -> 86 | B90: 386 | C90: رودينه محمد سمير على على درغام | E90: 5 | H90: ج
A91: =IF(C91="","",COUNTA($C$5:C91)) -> 87 | B91: 387 | C91: روضة أحمد محمد البهنسي | E91: 5 | H91: أ
A92: =IF(C92="","",COUNTA($C$5:C92)) -> 88 | B92: 388 | C92: ريتاج اسلام رجب ابراهيم محمد | E92: 5 | H92: ب
A93: =IF(C93="","",COUNTA($C$5:C93)) -> 89 | B93: 389 | C93: ريتاج محمد جمال محمود محمد عابدين | E93: 5 | H93: ج
A94: =IF(C94="","",COUNTA($C$5:C94)) -> 90 | B94: 390 | C94: ريتاج محمود عبد الحفيظ المرسى محمد | E94: 5 | H94: أ
A95: =IF(C95="","",COUNTA($C$5:C95)) -> 91 | B95: 391 | C95: ريتاج مصطفي محمد مصطفى علي | E95: 5 | H95: دمج ب
A96: =IF(C96="","",COUNTA($C$5:C96)) -> 92 | B96: 392 | C96: ريماس احمد مصطفى عبدالولى عزب | E96: 5 | H96: ج
A97: =IF(C97="","",COUNTA($C$5:C97)) -> 93 | B97: 393 | C97: ريماس محسن عبدالله حسن فرج | E97: 5 | H97: أ
A98: =IF(C98="","",COUNTA($C$5:C98)) -> 94 | B98: 394 | C98: ريمان محمد عاطف ابراهيم | E98: 5 | H98: ب
A99: =IF(C99="","",COUNTA($C$5:C99)) -> 95 | B99: 395 | C99: سجى أحمد عبد الرازق يوسف | E99: 5 | H99: ج
A100: =IF(C100="","",COUNTA($C$5:C100)) -> 96 | B100: 396 | C100: سجى متولى إبراهيم محمد على إبراهيم | E100: 5 | H100: أ
A101: =IF(C101="","",COUNTA($C$5:C101)) -> 97 | B101: 397 | C101: سما زين عبد الفتاح محمد | E101: 5 | H101: ب
A102: =IF(C102="","",COUNTA($C$5:C102)) -> 98 | B102: 398 | C102: سما سعد م حمود مصطفى على | E102: 5 | H102: ج
A103: =IF(C103="","",COUNTA($C$5:C103)) -> 99 | B103: 399 | C103: صفا صلاح على احمد العونى | E103: 5 | H103: أ
A104: =IF(C104="","",COUNTA($C$5:C104)) -> 100 | B104: 400 | C104: ضحى محمود أحمد عبدالفتاح | E104: 5 | F104: نهاية اللجنة | H104: ب
A105: =IF(C105="","",COUNTA($C$5:C105)) -> 101 | B105: 401 | C105: علياء محمد عبدالعاطي عبدالعزيز | E105: 6 | H105: أ
A106: =IF(C106="","",COUNTA($C$5:C106)) -> 102 | B106: 402 | C106: عواطف ابراهيم عبد الراضى حسنين | E106: 6 | H106: ب
A107: =IF(C107="","",COUNTA($C$5:C107)) -> 103 | B107: =IF(B106="","",IF(B106+1>$B$3,"",B106+1)) -> 403 | C107: فاطمة احمد محمد السيد مرسى | E107: 6 | H107: ج
A108: =IF(C108="","",COUNTA($C$5:C108)) -> 104 | B108: 404 | C108: فاطمة محمود سلامة محمد | E108: 6 | H108: أ
A109: =IF(C109="","",COUNTA($C$5:C109)) -> 105 | B109: 405 | C109: فرح ايهاب عبد العال المغاورى | E109: 6 | H109: ب
A110: =IF(C110="","",COUNTA($C$5:C110)) -> 106 | B110: 406 | C110: لمى اسلام مصطفى احمد مصطفى عطوة | E110: 6 | H110: ج
A111: =IF(C111="","",COUNTA($C$5:C111)) -> 107 | B111: 407 | C111: لوجينا محمد حسن باز الشريف | E111: 6 | H111: أ
A112: =IF(C112="","",COUNTA($C$5:C112)) -> 108 | B112: 408 | C112: مريان محمد مكاوى احمد | E112: 6 | H112: ب
A113: =IF(C113="","",COUNTA($C$5:C113)) -> 109 | B113: 409 | C113: مريم السيد فتحي السيد حسن | E113: 6 | H113: ج
A114: =IF(C114="","",COUNTA($C$5:C114)) -> 110 | B114: =IF(B113="","",IF(B113+1>$B$3,"",B113+1)) -> 410 | C114: مريم صلاح السيد موسى إبراهيم | E114: 6 | H114: أ
A115: =IF(C115="","",COUNTA($C$5:C115)) -> 111 | B115: =IF(B114="","",IF(B114+1>$B$3,"",B114+1)) -> 411 | C115: ملك اشرف جمال عبدالمنعم العليمى | E115: 6 | H115: ب
A116: =IF(C116="","",COUNTA($C$5:C116)) -> 112 | B116: =IF(B115="","",IF(B115+1>$B$3,"",B115+1)) -> 412 | C116: ملك على محمد على على فتح | E116: 6 | H116: ج
A117: =IF(C117="","",COUNTA($C$5:C117)) -> 113 | B117: =IF(B116="","",IF(B116+1>$B$3,"",B116+1)) -> 413 | C117: ملك محمد حمزه متولى حمزه | E117: 6 | H117: أ
A118: =IF(C118="","",COUNTA($C$5:C118)) -> 114 | B118: =IF(B117="","",IF(B117+1>$B$3,"",B117+1)) -> 414 | C118: ميار وليد عيد السعيد متولى إبراهيم | E118: 6 | H118: ب
A119: =IF(C119="","",COUNTA($C$5:C119)) -> 115 | B119: 415 | C119: ناردى محمد ابراهيم على الطران | E119: 6 | H119: ج
A120: =IF(C120="","",COUNTA($C$5:C120)) -> 116 | B120: 416 | C120: نرفان محمد ابراهيم على الطران | E120: 6 | H120: أ
A121: =IF(C121="","",COUNTA($C$5:C121)) -> 117 | B121: 417 | C121: هنا ابراهيم احمد عزت | E121: 6 | H121: ب
A122: =IF(C122="","",COUNTA($C$5:C122)) -> 118 | B122: 418 | C122: هنا عبدالرحمن عبدالرشيد علي | E122: 6 | H122: ج
A123: =IF(C123="","",COUNTA($C$5:C123)) -> 119 | B123: 419 | C123: هنا محمود عيد محمود عيد | E123: 6 | F123: نهاية اللجنة | H123: أ
A124: =IF(C124="","",COUNTA($C$5:C124)) -> 
A125: =IF(C125="","",COUNTA($C$5:C125)) -> 
A126: =IF(C126="","",COUNTA($C$5:C126)) -> 
A127: =IF(C127="","",COUNTA($C$5:C127)) -> 
A128: =IF(C128="","",COUNTA($C$5:C128)) -> 
A129: =IF(C129="","",COUNTA($C$5:C129)) -> 
A130: =IF(C130="","",COUNTA($C$5:C130)) -> 
A131: =IF(C131="","",COUNTA($C$5:C131)) -> 
A132: =IF(C132="","",COUNTA($C$5:C132)) -> 
A133: =IF(C133="","",COUNTA($C$5:C133)) ->  | E133: =IF(B133="","",VLOOKUP(B133,أول_ز,4)) -> 
A134: =IF(C134="","",COUNTA($C$5:C134)) ->  | F134: =IF(E134=E135,"","نهاية اللجنة") ->  | G134: =IF(D134=D135,"","نهاية الفصل") -> 
A135: =IF(C135="","",COUNTA($C$5:C135)) -> 
A136: =IF(C136="","",COUNTA($C$5:C136)) -> 
A137: =IF(C137="","",COUNTA($C$5:C137)) -> 
A138: =IF(C138="","",COUNTA($C$5:C138)) -> 
A139: =IF(C139="","",COUNTA($C$5:C139)) -> 
A140: =IF(C140="","",COUNTA($C$5:C140)) -> 
A141: =IF(C141="","",COUNTA($C$5:C141)) -> 
A142: =IF(C142="","",COUNTA($C$5:C142)) -> 
A143: =IF(C143="","",COUNTA($C$5:C143)) -> 
A144: =IF(C144="","",COUNTA($C$5:C144)) -> 
A145: =IF(C145="","",COUNTA($C$5:C145)) -> 
A146: =IF(C146="","",COUNTA($C$5:C146)) -> 
A147: =IF(C147="","",COUNTA($C$5:C147)) -> 
A148: =IF(C148="","",COUNTA($C$5:C148)) -> 
A149: =IF(C149="","",COUNTA($C$5:C149)) -> 
A150: =IF(C150="","",COUNTA($C$5:C150)) -> 
A151: =IF(C151="","",COUNTA($C$5:C151)) -> 
A152: =IF(C152="","",COUNTA($C$5:C152)) -> 
A153: =IF(C153="","",COUNTA($C$5:C153)) -> 
A154: =IF(C154="","",COUNTA($C$5:C154)) -> 
A155: =IF(C155="","",COUNTA($C$5:C155)) -> 
A156: =IF(C156="","",COUNTA($C$5:C156)) -> 
A157: =IF(C157="","",COUNTA($C$5:C157)) -> 
A158: =IF(C158="","",COUNTA($C$5:C158)) -> 
A159: =IF(C159="","",COUNTA($C$5:C159)) -> 
A160: =IF(C160="","",COUNTA($C$5:C160)) -> 
A161: =IF(C161="","",COUNTA($C$5:C161)) -> 
A162: =IF(C162="","",COUNTA($C$5:C162)) -> 
A163: =IF(C163="","",COUNTA($C$5:C163)) -> 
A164: =IF(C164="","",COUNTA($C$5:C164)) -> 
A165: =IF(C165="","",COUNTA($C$5:C165)) -> 
A166: =IF(C166="","",COUNTA($C$5:C166)) -> 
A167: =IF(C167="","",COUNTA($C$5:C167)) -> 
A168: =IF(C168="","",COUNTA($C$5:C168)) -> 
A169: =IF(C169="","",COUNTA($C$5:C169)) -> 
A170: =IF(C170="","",COUNTA($C$5:C170)) -> 
A171: =IF(C171="","",COUNTA($C$5:C171)) -> 
A172: =IF(C172="","",COUNTA($C$5:C172)) -> 
A173: =IF(C173="","",COUNTA($C$5:C173)) -> 
A174: =IF(C174="","",COUNTA($C$5:C174)) -> 
A175: =IF(C175="","",COUNTA($C$5:C175)) -> 
A176: =IF(C176="","",COUNTA($C$5:C176)) -> 
A177: =IF(C177="","",COUNTA($C$5:C177)) -> 
A178: =IF(C178="","",COUNTA($C$5:C178)) -> 
A179: =IF(C179="","",COUNTA($C$5:C179)) -> 
A180: =IF(C180="","",COUNTA($C$5:C180)) ->  | B180: =IF(B179="","",IF(B179+1>$B$3,"",B179+1)) -> 
A181: =IF(C181="","",COUNTA($C$5:C181)) -> 
A182: =IF(C182="","",COUNTA($C$5:C182)) -> 
A183: =IF(C183="","",COUNTA($C$5:C183)) -> 
A184: =IF(C184="","",COUNTA($C$5:C184)) -> 
A185: =IF(C185="","",COUNTA($C$5:C185)) -> 
A186: =IF(C186="","",COUNTA($C$5:C186)) -> 
A187: =IF(C187="","",COUNTA($C$5:C187)) -> 
A188: =IF(C188="","",COUNTA($C$5:C188)) -> 
A189: =IF(C189="","",COUNTA($C$5:C189)) -> 
A190: =IF(C190="","",COUNTA($C$5:C190)) -> 
A191: =IF(C191="","",COUNTA($C$5:C191)) -> 
A192: =IF(C192="","",COUNTA($C$5:C192)) -> 
A193: =IF(C193="","",COUNTA($C$5:C193)) -> 
A194: =IF(C194="","",COUNTA($C$5:C194)) -> 
A195: =IF(C195="","",COUNTA($C$5:C195)) -> 
A196: =IF(C196="","",COUNTA($C$5:C196)) -> 
A197: =IF(C197="","",COUNTA($C$5:C197)) ->  | E197: =IF(B197="","",VLOOKUP(B197,أول_ز,4)) -> 
A198: =IF(C198="","",COUNTA($C$5:C198)) ->  | F198: =IF(E198=E199,"","نهاية اللجنة") ->  | G198: =IF(D198=D199,"","نهاية الفصل") -> 
A199: =IF(C199="","",COUNTA($C$5:C199)) -> 
A200: =IF(C200="","",COUNTA($C$5:C200)) -> 
A201: =IF(C201="","",COUNTA($C$5:C201)) -> 
... 403 more rows

Sheet مناداة
B1: ='بيانات أساسية'!$D5 -> إدارة قويسنا التعليمية | G1: ='بيانات أساسية'!$D5 -> إدارة قويسنا التعليمية | N1: 1 | O1: =MAX(اللجان!B5:B44) -> 6 | P1: =VLOOKUP(C4,اللجان!B5:F44,4) -> 20 | Q1: =VLOOKUP(H4,اللجان!B5:F44,4) -> 20
A2: عدد | B2: ='بيانات أساسية'!$D6 -> مدرسة عرب الرمل الإبتدائية سكة حديد | F2: عدد | G2: ='بيانات أساسية'!$D6 -> مدرسة عرب الرمل الإبتدائية سكة حديد
A3: =COUNT(A6:A106) -> 20 | B3: ='بيانات أساسية'!D15 -> الفصل الدراسى الأول 2025/2024 | F3: =COUNT(F6:F106) -> 20 | G3: ='بيانات أساسية'!D15 -> الفصل الدراسى الأول 2025/2024 | R3: =الطلبة!$C$2 -> الصف الرابع
A4: دمج | B4: كشف مناداة لجنة رقم | C4: =IF(N1>O1,"",N1) -> 1 | F4: دمج | G4: =B4 -> كشف مناداة لجنة رقم | H4: =IF(N1+1>O1,"",N1+1) -> 2
A5: =COUNTIF(D7:D35,"دمج*") -> 0 | B5: ='بيانات أساسية'!$D$14 -> الصف الرابع | F5: =COUNTIF(I7:I35,"دمج*") -> 1 | G5: ='بيانات أساسية'!$D$14 -> الصف الرابع
A6: م | B6: اسم الطالب | C6: رقم الجلوس | E6: رقم المجموعه | F6: م | G6: اسم الطالب | H6: رقم الجلوس | J6: رقم المجموعه
A7: =IF(P1="","",1) -> 1 | B7: =IF(A7="","",VLOOKUP(C7,بيانات,2)) -> السيد ماهر السيد حسين غلوش | C7: =IF(C4="","",VLOOKUP(C4,اللجان!B5:F44,2)) -> 301 | D7: =IF(OR(B7=$M$10,B7=$M$11,B7=$M$12,B7=$M$13,B7=$M$14,B7=$M$15,B7=$M$16,B7=$M$17,B7=$M$18,B7=$M$19),"دمج","") ->  | E7: =IFERROR(VLOOKUP(B7, الطلبة!$C$5:$H$1000, 6, FALSE), "") -> ب | F7: =IF(Q1="","",1) -> 1 | G7: =IF(F7="","",VLOOKUP(H7,بيانات,2)) -> حمزة عبد الفتاح أحمد عبد الفتاح | H7: =IF(H4="","",VLOOKUP(H4,اللجان!B5:F44,2)) -> 321 | I7: =IF(OR(G7=$M$10,G7=$M$11,G7=$M$12,G7=$M$13,G7=$M$14,G7=$M$15,G7=$M$16,G7=$M$17,G7=$M$18,G7=$M$19),"دمج","") ->  | J7: =IFERROR(VLOOKUP(G7, الطلبة!$C$5:$H$1000, 6, FALSE), "") -> أ
A8: =IF(A7="","",IF(A7+1>$P$1,"",A7+1)) -> 2 | B8: =IF(A8="","",VLOOKUP(C8,بيانات,2)) -> إبراهيم حسن حسينى عبد الهادى | C8: =IF(A7="","",IF(A8="","",C7+1)) -> 302 | E8: =IFERROR(VLOOKUP(B8, الطلبة!$C$5:$H$1000, 6, FALSE), "") -> ب | F8: =IF(F7="","",IF(F7+1>$Q$1,"",F7+1)) -> 2 | G8: خالد السعيد مسعد السعيد سيد أحمد | H8: =IF(F7="","",IF(F8="","",H7+1)) -> 322 | I8: =IF(OR(G8=$M$10,G8=$M$11,G8=$M$12,G8=$M$13,G8=$M$14,G8=$M$15,G8=$M$16,G8=$M$17,G8=$M$18,G8=$M$19),"دمج","") ->  | J8: =IFERROR(VLOOKUP(G8, الطلبة!$C$5:$H$1000, 6, FALSE), "") -> ب | M8: يتم تظليل طلبة الدمج التاليين عند ظهورهما بكشف المناداه ويختفى التظليل بإختفاؤهم
A9: 3 | B9: =IF(A9="","",VLOOKUP(C9,بيانات,2)) -> إياد عبد المحسن رمضان إمام نصر | C9: =IF(A8="","",IF(A9="","",C8+1)) -> 303 | E9: =IFERROR(VLOOKUP(B9, الطلبة!$C$5:$H$1000, 6, FALSE), "") -> ج | F9: 3 | G9: رأفت ربيع رضوان محمد الهادى | H9: =IF(F8="","",IF(F9="","",H8+1)) -> 323 | J9: =IFERROR(VLOOKUP(G9, الطلبة!$C$5:$H$1000, 6, FALSE), "") -> ج | M9: طلبة الدمج
A10: 4 | B10: إياد عمرو محمد عبد الفتاح حماد | C10: 304 | E10: =IFERROR(VLOOKUP(B10, الطلبة!$C$5:$H$1000, 6, FALSE), "") -> أ | F10: 4 | G10: رحيم ربيع رضوان محمد الهادى | H10: 324 | J10: =IFERROR(VLOOKUP(G10, الطلبة!$C$5:$H$1000, 6, FALSE), "") -> أ | M10: زياد احمد عبدالتواب موسي
A11: 5 | B11: إياد محمد زايد عبدالرازق | C11: 305 | E11: =IFERROR(VLOOKUP(B11, الطلبة!$C$5:$H$1000, 6, FALSE), "") -> ب | F11: 5 | G11: زياد احمد عبدالتواب موسي | H11: 325 | I11: دمج | J11: =IFERROR(VLOOKUP(G11, الطلبة!$C$5:$H$1000, 6, FALSE), "") -> دمج ب | M11: ريتاج مصطفي محمد مصطفى علي
A12: 6 | B12: إياد محمد فتحى عبدالستار | C12: 306 | E12: =IFERROR(VLOOKUP(B12, الطلبة!$C$5:$H$1000, 6, FALSE), "") -> ج | F12: 6 | G12: زياد أمير أحمد موسى منتصر | H12: 326 | J12: =IFERROR(VLOOKUP(G12, الطلبة!$C$5:$H$1000, 6, FALSE), "") -> ج | M12: 1
A13: 7 | B13: أحمد السيد محمد السيد أبو الفتوح | C13: =IF(A12="","",IF(A13="","",C12+1)) -> 307 | E13: =IFERROR(VLOOKUP(B13, الطلبة!$C$5:$H$1000, 6, FALSE), "") -> أ | F13: 7 | G13: سعد أحمد سعد توفيق | H13: 327 | I13: =IF(OR(G13=$M$10,G13=$M$11,G13=$M$12,G13=$M$13,G13=$M$14,G13=$M$15,G13=$M$16,G13=$M$17,G13=$M$18,G13=$M$19),"دمج","") ->  | J13: =IFERROR(VLOOKUP(G13, الطلبة!$C$5:$H$1000, 6, FALSE), "") -> أ | M13: 1
A14: 8 | B14: أحمد بلال عبدالسميع عبدالمنعم | C14: 308 | E14: =IFERROR(VLOOKUP(B14, الطلبة!$C$5:$H$1000, 6, FALSE), "") -> ب | F14: 8 | G14: صبحى محمد صبحى عبدالرازق | H14: 328 | J14: =IFERROR(VLOOKUP(G14, الطلبة!$C$5:$H$1000, 6, FALSE), "") -> ب | M14: 1
A15: 9 | B15: أحمد حسام عطيه المغازى أبو زيد | C15: 309 | E15: =IFERROR(VLOOKUP(B15, الطلبة!$C$5:$H$1000, 6, FALSE), "") -> ج | F15: 9 | G15: صلاح محمود صلاح الدين غنيم | H15: 329 | J15: =IFERROR(VLOOKUP(G15, الطلبة!$C$5:$H$1000, 6, FALSE), "") -> ج | M15: 1
A16: 10 | B16: أحمد رامى محمود محمد | C16: 310 | E16: =IFERROR(VLOOKUP(B16, الطلبة!$C$5:$H$1000, 6, FALSE), "") -> أ | F16: 10 | G16: عبد الحليم عمرو عبد الحليم السيد | H16: 330 | J16: =IFERROR(VLOOKUP(G16, الطلبة!$C$5:$H$1000, 6, FALSE), "") -> أ | M16: 1
A17: 11 | B17: أحمد رضا محمد على جلاله | C17: 311 | E17: =IFERROR(VLOOKUP(B17, الطلبة!$C$5:$H$1000, 6, FALSE), "") -> ب | F17: 11 | G17: عبد الرحمن السيد عبد العزيز محمد | H17: 331 | J17: =IFERROR(VLOOKUP(G17, الطلبة!$C$5:$H$1000, 6, FALSE), "") -> ب | M17: 1
A18: 12 | B18: أحمد عبدالحميد أحمد الحنفي | C18: 312 | E18: =IFERROR(VLOOKUP(B18, الطلبة!$C$5:$H$1000, 6, FALSE), "") -> ج | F18: 12 | G18: عبد الرحمن عماد عاطف مكاوى | H18: 332 | J18: =IFERROR(VLOOKUP(G18, الطلبة!$C$5:$H$1000, 6, FALSE), "") -> ج | M18: 1
A19: 13 | B19: أحمد متولى احمد متولى | C19: 313 | E19: =IFERROR(VLOOKUP(B19, الطلبة!$C$5:$H$1000, 6, FALSE), "") -> أ | F19: 13 | G19: عبد الرحمن محمد مسعد رمضان | H19: 333 | J19: =IFERROR(VLOOKUP(G19, الطلبة!$C$5:$H$1000, 6, FALSE), "") -> أ | M19: 1
A20: 14 | B20: أحمد محمد عبدالعزيز محمد عبدالغنى | C20: 314 | E20: =IFERROR(VLOOKUP(B20, الطلبة!$C$5:$H$1000, 6, FALSE), "") -> ب | F20: 14 | G20: عبد العزيز محمد عبد العزيز موسى | H20: 334 | I20: =IF(OR(G20=$M$10,G20=$M$11,G20=$M$12,G20=$M$13,G20=$M$14,G20=$M$15,G20=$M$16,G20=$M$17,G20=$M$18,G20=$M$19),"دمج","") ->  | J20: =IFERROR(VLOOKUP(G20, الطلبة!$C$5:$H$1000, 6, FALSE), "") -> ب | M20: 1
A21: 15 | B21: أحمد هانى صلاح الدين غنيم | C21: 315 | E21: =IFERROR(VLOOKUP(B21, الطلبة!$C$5:$H$1000, 6, FALSE), "") -> ج | F21: 15 | G21: على عادل على محمد | H21: 335 | J21: =IFERROR(VLOOKUP(G21, الطلبة!$C$5:$H$1000, 6, FALSE), "") -> ج | M21: 1
A22: 16 | B22: أنس مصطفى عبد ربه عبد اللطيف | C22: 316 | E22: =IFERROR(VLOOKUP(B22, الطلبة!$C$5:$H$1000, 6, FALSE), "") -> أ | F22: 16 | G22: عماد موسى إبراهيم موسى أحمد | H22: 336 | J22: =IFERROR(VLOOKUP(G22, الطلبة!$C$5:$H$1000, 6, FALSE), "") -> أ | M22: 1
A23: 17 | B23: آدم عصام الحفنى عبدالمعطي | C23: 317 | E23: =IFERROR(VLOOKUP(B23, الطلبة!$C$5:$H$1000, 6, FALSE), "") -> ب | F23: 17 | G23: عمر احمد حامد زكى | H23: 337 | J23: =IFERROR(VLOOKUP(G23, الطلبة!$C$5:$H$1000, 6, FALSE), "") -> ب | M23: 1
A24: 18 | B24: آدم عمرو الصادق المرادى | C24: 318 | E24: =IFERROR(VLOOKUP(B24, الطلبة!$C$5:$H$1000, 6, FALSE), "") -> ج | F24: 18 | G24: عمر أحمد محمد محمد على | H24: 338 | J24: =IFERROR(VLOOKUP(G24, الطلبة!$C$5:$H$1000, 6, FALSE), "") -> ج | M24: 1
A25: 19 | B25: آدم محمد السيد عبدالمنعم العليمي | C25: 319 | E25: =IFERROR(VLOOKUP(B25, الطلبة!$C$5:$H$1000, 6, FALSE), "") -> أ | F25: 19 | G25: عمر علاء سلامة محمد الخضرى | H25: 339 | J25: =IFERROR(VLOOKUP(G25, الطلبة!$C$5:$H$1000, 6, FALSE), "") -> أ | M25: 1
A26: 20 | B26: حسام محمد حسام الدين محمود | C26: 320 | E26: =IFERROR(VLOOKUP(B26, الطلبة!$C$5:$H$1000, 6, FALSE), "") -> ب | F26: 20 | G26: فتحى محمود فتحى عواد فرج | H26: 340 | J26: =IFERROR(VLOOKUP(G26, الطلبة!$C$5:$H$1000, 6, FALSE), "") -> ب | M26: 1
E27: =IFERROR(VLOOKUP(B27, الطلبة!$C$5:$H$1000, 6, FALSE), "") ->  | J27: =IFERROR(VLOOKUP(G27, الطلبة!$C$5:$H$1000, 6, FALSE), "") ->  | M27: 1
C28: =IF(A27="","",IF(A28="","",C27+1)) ->  | E28: =IFERROR(VLOOKUP(B28, الطلبة!$C$5:$H$1000, 6, FALSE), "") ->  | H28: =IF(F27="","",IF(F28="","",H27+1)) ->  | J28: =IFERROR(VLOOKUP(G28, الطلبة!$C$5:$H$1000, 6, FALSE), "") ->  | M28: 1
B29: =IF(A29="","",VLOOKUP(C29,بيانات,2)) ->  | E29: =IFERROR(VLOOKUP(B29, الطلبة!$C$5:$H$1000, 6, FALSE), "") ->  | J29: =IFERROR(VLOOKUP(G29, الطلبة!$C$5:$H$1000, 6, FALSE), "") -> 
B30: =IF(A30="","",VLOOKUP(C30,بيانات,2)) ->  | E30: =IFERROR(VLOOKUP(B30, الطلبة!$C$5:$H$1000, 6, FALSE), "") ->  | G30: =IF(F30="","",VLOOKUP(H30,بيانات,2)) ->  | J30: =IFERROR(VLOOKUP(G30, الطلبة!$C$5:$H$1000, 6, FALSE), "") -> 
B31: =IF(A31="","",VLOOKUP(C31,بيانات,2)) ->  | E31: =IFERROR(VLOOKUP(B31, الطلبة!$C$5:$H$1000, 6, FALSE), "") ->  | G31: =IF(F31="","",VLOOKUP(H31,بيانات,2)) ->  | J31: =IFERROR(VLOOKUP(G31, الطلبة!$C$5:$H$1000, 6, FALSE), "") -> 
B32: =IF(A32="","",VLOOKUP(C32,بيانات,2)) ->  | E32: =IFERROR(VLOOKUP(B32, الطلبة!$C$5:$H$1000, 6, FALSE), "") ->  | G32: =IF(F32="","",VLOOKUP(H32,بيانات,2)) -> 
B33: =IF(A33="","",VLOOKUP(C33,بيانات,2)) ->  | G33: =IF(F33="","",VLOOKUP(H33,بيانات,2)) -> 
B34: ='بيانات أساسية'!$A$9 -> رئيس اللجــنة | C34: =H34 -> 0 | D34: =IF(OR(B34=$M$10,B34=$M$11,B34=$M$12,B34=$M$13,B34=$M$14,B34=$M$15,B34=$M$16,B34=$M$17,B34=$M$18,B34=$M$19),"دمج","") ->  | G34: ='بيانات أساسية'!$A$9 -> رئيس اللجــنة | I34: =IF(OR(G34=$M$10,G34=$M$11,G34=$M$12,G34=$M$13,G34=$M$14,G34=$M$15,G34=$M$16,G34=$M$17,G34=$M$18,G34=$M$19),"دمج","") -> 
B35: ='بيانات أساسية'!$D$9 -> أ/عزه البدرى | C35: ='بيانات أساسية'!$D$8 -> أ/ محـــمد سعيـــد | D35: =IF(OR(B35=$M$10,B35=$M$11,B35=$M$12,B35=$M$13,B35=$M$14,B35=$M$15,B35=$M$16,B35=$M$17,B35=$M$18,B35=$M$19),"دمج","") ->  | G35: ='بيانات أساسية'!$D$9 -> أ/عزه البدرى | H35: ='بيانات أساسية'!$D$8 -> أ/ محـــمد سعيـــد | I35: =IF(OR(G35=$M$10,G35=$M$11,G35=$M$12,G35=$M$13,G35=$M$14,G35=$M$15,G35=$M$16,G35=$M$17,G35=$M$18,G35=$M$19),"دمج","") -> 
